fUSD/lending_fUSD_20251012
["ID","MTS","AMOUNT","RATE_DAILY","PERIOD"]
[391076522,1760304653503,-694.77,0.00026772,2]
[391076523,1760304653513,-340.23,0.00026772,2]
[391076524,1760304653522,-500.0,0.00026777,7]
[391076525,1760304653532,-1400.0,0.00026787,7]
[391076526,1760304653541,-150.0,0.00026844,7]
[391076527,1760304653551,-823.32684396,0.00026849,2]
[391076528,1760304653561,-251.11897888,0.0002685,2]
[391076529,1760304653570,-500.0,0.00026891,7]
[391076530,1760304653580,-600.0,0.00026896,7]
[391076531,1760304653589,-500.0,0.00026896,7]
[391076532,1760304653599,-500.0,0.00026902,7]
[391076533,1760304653610,-500.0,0.00026903,7]
[391076534,1760304653620,-1800.0,0.00026919,7]
[391076535,1760304653630,-2200.0,0.00026928,7]
[391076536,1760304653640,-150.0,0.00026944,7]
[391076537,1760304653650,-214.612,0.00026948,2]
[391076538,1760304653660,-1400.0,0.00026949,7]
[391076539,1760304653670,-269.48,0.00026969,2]
[391076540,1760304653680,-270.85868677,0.00026976,4]
[391076541,1760304653689,-1800.0,0.00026979,7]
[391076542,1760304653698,-500.0,0.00026988,7]
[391076543,1760304653708,-500.0,0.00026993,7]
[391076544,1760304653719,-2200.0,0.00026995,7]
[391076545,1760304653728,-240.0,0.00027,2]
[391076546,1760304653738,-642.0,0.00027,2]
[391076547,1760304653748,-250.0,0.00027,2]
[391076548,1760304653758,-1016.64967588,0.00027,2]
[391076549,1760304653768,-530.0,0.00027,2]
[391076550,1760304653777,-2000.0,0.00027,2]
[391076551,1760304653792,-500.0,0.00027,2]
[391076552,1760304653802,-200.0,0.00027,2]
[391076553,1760304653811,-200.0,0.00027,2]
[391076554,1760304653821,-1006.57,0.00027,30]
[391076555,1760304653830,-1001.0,0.00027,2]
[391076556,1760304653839,-2349.556504,0.0002701,2]
[391076557,1760304653848,-652.0,0.00027035,2]
[391076558,1760304653861,-1200.0,0.00027042,7]
[391076559,1760304653870,-150.0,0.00027044,7]
[391076560,1760304653879,-150.0,0.00027054,2]
[391076561,1760304653889,-3700.0,0.00027055,7]
[391076562,1760304653899,-1800.0,0.00027066,7]
[391076563,1760304653908,-652.0,0.00027077,7]
[391076564,1760304653918,-652.0,0.0002708,7]
[391076565,1760304653927,-3700.0,0.00027091,7]
[391076566,1760304653937,-2000.0,0.000271,2]
[391076567,1760304653946,-595.452961,0.000271,2]
[391076568,1760304653956,-652.0,0.00027133,2]
[391076569,1760304653966,-3700.0,0.00027135,7]
[391076570,1760304653975,-600.0,0.0002714,7]
[391076571,1760304653984,-150.0,0.00027144,2]
[391076572,1760304653993,-150.0,0.00027144,7]
[391076573,1760304654003,-1400.0,0.0002715,7]
[391076574,1760304654013,-652.0,0.00027174,2]
[391076575,1760304654022,-1800.0,0.00027174,7]
[391076576,1760304654031,-1900.0,0.00027189,7]
[391076577,1760304654040,-652.0,0.00027208,2]
[391076578,1760304654049,-652.0,0.00027209,2]
[391076579,1760304654058,-150.0,0.00027244,7]
[391076580,1760304654068,-200.0,0.0002727,2]
[391076581,1760304654077,-200.0,0.0002727,2]
[391076582,1760304654086,-3700.0,0.00027299,7]
[391076583,1760304654096,-3700.0,0.00027323,7]
[391076584,1760304654107,-500.0,0.00027342,7]
[391076585,1760304654117,-150.0,0.00027344,7]
[391076586,1760304654126,-1900.0,0.0002736,7]
[391076587,1760304654135,-2200.0,0.00027368,7]
[391076588,1760304654144,-3186.40641159,0.0002739,2]
[391076589,1760304654153,-652.0,0.0002739,2]
[391076590,1760304654162,-13374.8140399,0.00027397,2]
[391076591,1760304654172,-3531.93,0.00027397,2]
[391076592,1760304654181,-500.0,0.00027397,2]
[391076593,1760304654190,-500.0,0.00027397,2]
[391076594,1760304654200,-1884.98,0.00027397,2]
[391076595,1760304654209,-500.0,0.00027397,2]
[391076596,1760304654218,-1176.66,0.00027397,2]
[391076597,1760304654227,-500.0,0.00027397,2]
[391076598,1760304654236,-2297.08,0.00027397,2]
[391076599,1760304654246,-2232.5,0.00027397,2]
[391076600,1760304654255,-625.16,0.00027397,2]
[391076601,1760304654264,-507.17,0.00027397,2]
[391076602,1760304654273,-507.17,0.00027397,2]
[391076603,1760304654282,-507.17,0.00027397,2]
[391076604,1760304654292,-507.17,0.00027397,2]
[391076605,1760304654302,-507.17,0.00027397,2]
[391076606,1760304654311,-507.17,0.00027397,2]
[391076607,1760304654320,-507.17,0.00027397,2]
[391076608,1760304654329,-507.17,0.00027397,2]
[391076609,1760304654338,-507.17,0.00027397,2]
[391076610,1760304654348,-507.17,0.00027397,2]
[391076611,1760304654359,-500.0,0.00027397,2]
[391076612,1760304654368,-500.0,0.00027397,2]
[391076613,1760304654377,-500.0,0.00027397,2]
[391076614,1760304654386,-500.0,0.00027397,2]
[391076615,1760304654397,-500.0,0.00027397,2]
[391076616,1760304654408,-198.29920567,0.00027397,2]
[391076617,1760304654417,-500.0,0.00027397,2]
[391076618,1760304654426,-500.0,0.00027397,2]
[391076619,1760304654435,-500.0,0.00027397,2]
[391076620,1760304654446,-500.0,0.00027397,2]
[391076621,1760304654455,-500.0,0.00027397,2]
[391076622,1760304654465,-500.0,0.00027397,2]
[391076623,1760304654475,-500.0,0.00027397,2]
[391076624,1760304654484,-500.0,0.00027397,2]
[391076625,1760304654494,-500.0,0.00027397,2]
[391076626,1760304654503,-500.0,0.00027397,2]
[391076627,1760304654512,-500.0,0.00027397,2]
[391076628,1760304654521,-303.33680588,0.00027397,2]
[391076629,1760304654531,-500.0,0.00027397,2]
[391076630,1760304654539,-500.0,0.00027397,2]
[391076631,1760304654549,-160.94602729,0.00027397,2]
[391076632,1760304654558,-849.54,0.00027397,2]
[391076633,1760304654567,-849.54,0.00027397,2]
[391076634,1760304654576,-849.54,0.00027397,2]
[391076635,1760304654585,-849.54,0.00027397,2]
[391076636,1760304654594,-849.54,0.00027397,2]
[391076637,1760304654604,-849.54,0.00027397,2]
[391076638,1760304654613,-849.54,0.00027397,2]
[391076639,1760304654622,-849.54,0.00027397,2]
[391076640,1760304654631,-849.54,0.00027397,2]
[391076641,1760304654639,-849.54,0.00027397,2]
[391076642,1760304654648,-849.54,0.00027397,2]
[391076643,1760304654657,-849.54,0.00027397,2]
[391076644,1760304654666,-849.54,0.00027397,2]
[391076645,1760304654675,-849.54,0.00027397,2]
[391076646,1760304654685,-849.54,0.00027397,2]
[391076647,1760304654694,-849.54,0.00027397,2]
[391076648,1760304654704,-849.54,0.00027397,2]
[391076649,1760304654713,-849.54,0.00027397,2]
[391076650,1760304654722,-849.54,0.00027397,2]
[391076651,1760304654732,-849.54,0.00027397,2]
[391076652,1760304654742,-849.54,0.00027397,2]
[391076653,1760304654751,-849.54,0.00027397,2]
[391076654,1760304654760,-849.54,0.00027397,2]
[391076655,1760304654769,-849.63,0.00027397,2]
[391076656,1760304654779,-500.0,0.00027397,2]
[391076657,1760304654788,-500.0,0.00027397,2]
[391076658,1760304654797,-500.0,0.00027397,2]
[391076659,1760304654807,-500.0,0.00027397,2]
[391076660,1760304654816,-500.0,0.00027397,2]
[391076661,1760304654826,-500.0,0.00027397,2]
[391076662,1760304654835,-485.83479638,0.00027397,2]
[391076663,1760304654844,-500.0,0.00027397,2]
[391076664,1760304654932,-500.0,0.00027397,2]
[391076665,1760304654975,-500.0,0.00027397,2]
[391076666,1760304654985,-500.0,0.00027397,2]
[391076667,1760304654994,-582.35036479,0.00027397,2]
[391076668,1760304655003,-500.0,0.00027397,2]
[391076669,1760304655013,-500.0,0.00027397,2]
[391076670,1760304655022,-500.0,0.00027397,2]
[391076671,1760304655031,-500.0,0.00027397,2]
[391076672,1760304655041,-500.0,0.00027397,2]
[391076673,1760304655050,-306.63515861,0.00027397,2]
[391076674,1760304655060,-500.0,0.00027397,2]
[391076675,1760304655069,-500.0,0.00027397,2]
[391076676,1760304655079,-500.0,0.00027397,2]
[391076677,1760304655089,-500.0,0.00027397,2]
[391076678,1760304655098,-500.0,0.00027397,2]
[391076679,1760304655108,-500.0,0.00027397,2]
[391076680,1760304655118,-500.0,0.00027397,2]
[391076681,1760304655127,-500.0,0.00027397,2]
[391076682,1760304655138,-500.0,0.00027397,2]
[391076683,1760304655147,-600.36,0.00027397,2]
[391076684,1760304655156,-556.49,0.00027397,2]
[391076685,1760304655165,-500.0,0.00027397,2]
[391076686,1760304655175,-500.0,0.00027397,2]
[391076687,1760304655185,-500.0,0.00027397,2]
[391076688,1760304655195,-500.0,0.00027397,2]
[391076689,1760304655204,-500.0,0.00027397,2]
[391076690,1760304655214,-500.0,0.00027397,2]
[391076691,1760304655223,-500.0,0.00027397,2]
[391076692,1760304655233,-150.0,0.00027397,52]
[391076693,1760304655243,-563.69,0.00027397,2]
[391076694,1760304655252,-500.0,0.00027397,2]
[391076695,1760304655262,-500.0,0.00027397,2]
[391076696,1760304655271,-500.0,0.00027397,2]
[391076697,1760304655280,-500.0,0.00027397,2]
[391076698,1760304655290,-500.0,0.00027397,2]
[391076699,1760304655299,-500.0,0.00027397,2]
[391076700,1760304655308,-500.0,0.00027397,2]
[391076701,1760304655318,-500.0,0.00027397,2]
[391076702,1760304655327,-500.0,0.00027397,2]
[391076703,1760304655336,-500.0,0.00027397,2]
[391076704,1760304655346,-500.0,0.00027397,2]
[391076705,1760304655356,-500.0,0.00027397,2]
[391076706,1760304655365,-500.0,0.00027397,2]
[391076707,1760304655374,-500.0,0.00027397,2]
[391076708,1760304655384,-500.0,0.00027397,2]
[391076709,1760304655393,-500.0,0.00027397,2]
[391076710,1760304655406,-500.0,0.00027397,2]
[391076711,1760304655416,-500.0,0.00027397,2]
[391076712,1760304655426,-500.0,0.00027397,2]
[391076713,1760304655435,-500.0,0.00027397,2]
[391076714,1760304655446,-500.0,0.00027397,2]
[391076715,1760304655456,-500.0,0.00027397,2]
[391076716,1760304655466,-169.42,0.00027397,2]
[391076717,1760304655477,-1946.00510568,0.00027397,2]
[391076718,1760304655487,-150.0,0.00027397,60]
[391076719,1760304655496,-150.0,0.00027397,60]
[391076720,1760304655506,-200.0,0.00027397,2]
[391076721,1760304655516,-150.0,0.00027397,60]
[391076722,1760304655526,-150.0,0.00027397,60]
[391076723,1760304655535,-500.0,0.00027397,60]
[391076724,1760304655545,-500.0,0.00027397,2]
[391076725,1760304655555,-500.0,0.00027397,2]
[391076726,1760304655565,-500.0,0.00027397,2]
[391076727,1760304655575,-500.0,0.00027397,2]
[391076728,1760304655585,-500.0,0.00027397,2]
[391076729,1760304655595,-500.0,0.00027397,2]
[391076730,1760304655607,-500.0,0.00027397,2]
[391076731,1760304655616,-500.0,0.00027397,2]
[391076732,1760304655626,-500.0,0.00027397,2]
[391076733,1760304655636,-500.0,0.00027397,2]
[391076734,1760304655646,-500.0,0.00027397,2]
[391076735,1760304655655,-500.0,0.00027397,2]
[391076736,1760304655664,-500.0,0.00027397,2]
[391076737,1760304655674,-500.0,0.00027397,2]
[391076738,1760304655683,-500.0,0.00027397,2]
[391076739,1760304655692,-500.0,0.00027397,2]
[391076740,1760304655702,-501.81487385,0.00027397,2]
[391076741,1760304655711,-500.0,0.00027397,2]
[391076742,1760304655721,-500.0,0.00027397,2]
[391076743,1760304655730,-500.0,0.00027397,2]
[391076744,1760304655739,-500.0,0.00027397,2]
[391076745,1760304655749,-500.0,0.00027397,2]
[391076746,1760304655759,-500.0,0.00027397,2]
[391076747,1760304655768,-179.5247698,0.00027397,2]
[391076748,1760304655778,-500.0,0.00027397,2]
[391076749,1760304655787,-500.0,0.00027397,60]
[391076750,1760304655797,-500.0,0.00027397,4]
[391076751,1760304655806,-500.0,0.00027397,4]
[391076752,1760304655816,-500.0,0.00027397,4]
[391076753,1760304655826,-500.0,0.00027397,4]
[391076754,1760304655836,-500.0,0.00027397,4]
[391076755,1760304655845,-500.0,0.00027397,4]
[391076756,1760304655855,-500.0,0.00027397,4]
[391076757,1760304655865,-500.0,0.00027397,4]
[391076758,1760304655875,-500.0,0.00027397,4]
[391076759,1760304655885,-518.205,0.00027397,4]
[391076760,1760304655895,-335.74,0.00027397,2]
[391076761,1760304655905,-335.74,0.00027397,2]
[391076762,1760304655915,-335.74,0.00027397,2]
[391076763,1760304655925,-335.74,0.00027397,2]
[391076764,1760304655935,-335.74,0.00027397,2]
[391076765,1760304655945,-335.74,0.00027397,2]
[391076766,1760304655955,-335.74,0.00027397,2]
[391076767,1760304655965,-335.74,0.00027397,2]
[391076768,1760304655975,-335.74,0.00027397,2]
[391076769,1760304655984,-335.74,0.00027397,2]
[391076770,1760304655995,-335.74,0.00027397,2]
[391076771,1760304656005,-335.74,0.00027397,2]
[391076772,1760304656015,-335.74,0.00027397,2]
[391076773,1760304656024,-335.74,0.00027397,2]
[391076774,1760304656034,-335.74,0.00027397,2]
[391076775,1760304656043,-335.74,0.00027397,2]
[391076776,1760304656053,-335.74,0.00027397,2]
[391076777,1760304656063,-335.74,0.00027397,2]
[391076778,1760304656072,-335.74,0.00027397,2]
[391076779,1760304656081,-335.74,0.00027397,2]
[391076780,1760304656091,-335.74,0.00027397,2]
[391076781,1760304656101,-335.74,0.00027397,2]
[391076782,1760304656111,-335.74,0.00027397,2]
[391076783,1760304656121,-335.92767655,0.00027397,2]
[391076784,1760304656131,-500.0,0.00027397,60]
[391076785,1760304656140,-150.0,0.00027397,60]
[391076786,1760304656150,-150.0,0.00027397,60]
[391076787,1760304656160,-500.0,0.00027397,60]
[391076788,1760304656169,-150.0,0.00027397,60]
[391076789,1760304656179,-150.0,0.00027397,60]
[391076790,1760304656189,-150.0,0.00027397,60]
[391076791,1760304656198,-500.0,0.00027397,60]
[391076792,1760304656207,-150.0,0.00027397,60]
[391076793,1760304656216,-150.0,0.00027397,60]
[391076794,1760304656227,-500.0,0.00027397,60]
[391076795,1760304656236,-500.0,0.00027397,2]
[391076796,1760304656246,-603.0,0.00027397,60]
[391076797,1760304656256,-150.0,0.00027397,60]
[391076798,1760304656266,-150.0,0.00027397,60]
[391076799,1760304656276,-500.0,0.00027397,60]
[391076800,1760304656286,-430.0,0.00027397,2]
[391076801,1760304656295,-500.0,0.00027397,14]
[391076802,1760304656305,-500.0,0.00027397,2]
[391076803,1760304656314,-150.0,0.00027397,60]
[391076804,1760304656324,-500.0,0.00027397,2]
[391076805,1760304656333,-150.0,0.00027397,2]
[391076806,1760304656343,-500.0,0.00027397,60]
[391076807,1760304656352,-500.0,0.00027397,60]
[391076808,1760304656361,-150.0,0.00027397,2]
[391076809,1760304656371,-500.0,0.00027397,60]
[391076810,1760304656380,-500.0,0.00027397,60]
[391076811,1760304656389,-150.0,0.00027397,2]
[391076812,1760304656403,-500.0,0.00027397,60]
[391076813,1760304656412,-500.0,0.00027397,60]
[391076814,1760304656423,-200.0,0.00027397,2]
[391076815,1760304656432,-150.0,0.00027397,60]
[391076816,1760304656443,-500.0,0.00027397,60]
[391076817,1760304656452,-500.0,0.00027397,60]
[391076818,1760304656462,-500.0,0.00027397,60]
[391076819,1760304656474,-500.0,0.00027397,60]
[391076820,1760304656483,-500.0,0.00027397,60]
[391076821,1760304656493,-426.08463875,0.00027397,60]
[391076822,1760304656503,-416.0,0.00027397,60]
[391076823,1760304656512,-150.0,0.00027397,60]
[391076824,1760304656522,-150.0,0.00027397,60]
[391076825,1760304656532,-249.42341481,0.00027397,60]
[391076826,1760304656541,-500.0,0.00027397,2]
[391076827,1760304656550,-500.0,0.00027397,2]
[391076828,1760304656560,-500.0,0.00027397,2]
[391076829,1760304656570,-500.0,0.00027397,2]
[391076830,1760304656579,-500.0,0.00027397,2]
[391076831,1760304656589,-500.0,0.00027397,2]
[391076832,1760304656598,-500.0,0.00027397,2]
[391076833,1760304656608,-500.0,0.00027397,2]
[391076834,1760304656618,-500.0,0.00027397,2]
[391076835,1760304656627,-500.0,0.00027397,2]
[391076836,1760304656638,-500.0,0.00027397,2]
[391076837,1760304656648,-500.0,0.00027397,2]
[391076838,1760304656658,-500.0,0.00027397,2]
[391076839,1760304656667,-500.0,0.00027397,2]
[391076840,1760304656677,-253.91336332,0.00027397,2]
[391076841,1760304656686,-500.0,0.00027397,2]
[391076842,1760304656696,-500.0,0.00027397,2]
[391076843,1760304656705,-150.0,0.00027397,60]
[391076844,1760304656716,-150.0,0.00027397,60]
[391076845,1760304656726,-500.0,0.00027397,60]
[391076846,1760304656735,-201.0,0.00027397,2]
[391076847,1760304656745,-600.0,0.00027397,2]
[391076848,1760304656754,-3269.68,0.00027397,20]
[391076849,1760304656764,-300.0,0.00027397,2]
[391076850,1760304656773,-1166.84,0.00027397,2]
[391076851,1760304656784,-851.29093004,0.00027397,2]
[391076852,1760304656794,-510.06,0.00027397,2]
[391076853,1760304656803,-156.97162928,0.00027397,5]
[391076854,1760304656812,-260.4103811,0.00027398,2]
[391076855,1760304656821,-14565.66770218,0.00027409,7]
[391076856,1760304656830,-166.66,0.00027418,2]
[391076857,1760304656840,-1900.0,0.00027429,7]
[391076858,1760304656850,-2500.0,0.00027434,7]
[391076859,1760304656861,-150.0,0.00027444,15]
[391076860,1760304656871,-150.0,0.00027452,52]
[391076861,1760304656880,-150.0,0.00027452,60]
[391076862,1760304656890,-150.0,0.00027452,60]
[391076863,1760304656899,-150.0,0.00027452,60]
[391076864,1760304656909,-150.0,0.00027452,60]
[391076865,1760304656918,-500.0,0.00027452,60]
[391076866,1760304656928,-500.0,0.00027452,60]
[391076867,1760304656938,-500.0,0.00027452,60]
[391076868,1760304656948,-150.0,0.00027452,60]
[391076869,1760304656957,-500.0,0.00027452,60]
[391076870,1760304656967,-200.0,0.00027452,60]
[391076871,1760304656977,-200.0,0.00027452,60]
[391076872,1760304656987,-150.0,0.00027452,60]
[391076873,1760304656996,-500.0,0.00027452,60]
[391076874,1760304657006,-150.0,0.00027452,60]
[391076875,1760304657016,-150.0,0.00027452,60]
[391076876,1760304657026,-500.0,0.00027452,60]
[391076877,1760304657035,-500.0,0.00027452,2]
[391076878,1760304657045,-603.0,0.00027452,60]
[391076879,1760304657055,-150.0,0.00027452,60]
[391076880,1760304657065,-500.0,0.00027452,60]
[391076881,1760304657340,-430.0,0.00027452,2]
[391076882,1760304657356,-500.0,0.00027452,14]
[391076883,1760304657366,-500.0,0.00027452,2]
[391076884,1760304657376,-150.0,0.00027452,60]
[391076885,1760304657386,-500.0,0.00027452,60]
[391076886,1760304657398,-500.0,0.00027452,60]
[391076887,1760304657408,-500.0,0.00027452,60]
[391076888,1760304657417,-500.0,0.00027452,60]
[391076889,1760304657427,-500.0,0.00027452,60]
[391076890,1760304657437,-500.0,0.00027452,60]
[391076891,1760304657447,-150.0,0.00027452,60]
[391076892,1760304657457,-416.0,0.00027452,60]
[391076893,1760304657467,-150.0,0.00027452,60]
[391076894,1760304657479,-150.0,0.00027452,60]
[391076895,1760304657489,-150.0,0.00027452,60]
[391076896,1760304657499,-500.0,0.00027452,60]
[391076897,1760304657509,-652.0,0.00027454,2]
[391076898,1760304657518,-1000.0,0.000275,4]
[391076899,1760304657528,-197.65064827,0.000275,2]
[391076900,1760304657537,-539.93058965,0.000275,2]
[391076901,1760304657551,-1006.57,0.000275,30]
[391076902,1760304657562,-217.84039258,0.00027501,7]
[391076903,1760304657572,-150.0,0.00027507,52]
[391076904,1760304657582,-486.5287662,0.00027507,60]
[391076905,1760304657593,-500.0,0.00027507,60]
[391076906,1760304657603,-500.0,0.00027507,60]
[391076907,1760304657613,-150.0,0.00027507,60]
[391076908,1760304657623,-500.0,0.00027507,60]
[391076909,1760304657632,-150.0,0.00027507,60]
[391076910,1760304657642,-500.0,0.00027507,60]
[391076911,1760304657652,-150.0,0.00027507,60]
[391076912,1760304657663,-151.3534941,0.00027507,60]
[391076913,1760304657673,-500.0,0.00027507,60]
[391076914,1760304657683,-500.0,0.00027507,2]
[391076915,1760304657693,-603.0,0.00027507,60]
[391076916,1760304657703,-150.0,0.00027507,60]
[391076917,1760304657714,-500.0,0.00027507,60]
[391076918,1760304657724,-430.0,0.00027507,2]
[391076919,1760304657734,-500.0,0.00027507,14]
[391076920,1760304657744,-500.0,0.00027507,2]
[391076921,1760304657754,-200.0,0.00027507,60]
[391076922,1760304657764,-500.0,0.00027507,60]
[391076923,1760304657774,-500.0,0.00027507,60]
[391076924,1760304657784,-500.0,0.00027507,60]
[391076925,1760304657794,-500.0,0.00027507,60]
[391076926,1760304657803,-500.0,0.00027507,60]
[391076927,1760304657813,-500.0,0.00027507,60]
[391076928,1760304657823,-150.0,0.00027507,60]
[391076929,1760304657833,-416.0,0.00027507,60]
[391076930,1760304657842,-200.0,0.00027507,60]
[391076931,1760304657852,-150.0,0.00027507,60]
[391076932,1760304657862,-500.0,0.00027507,60]
[391076933,1760304657872,-1425.0,0.00027529,2]
[391076934,1760304657883,-500.0,0.00027532,7]
[391076935,1760304657893,-507.17,0.0002754,120]
[391076936,1760304657903,-3700.0,0.00027542,7]
[391076937,1760304657912,-200.0,0.00027543,2]
[391076938,1760304657922,-150.0,0.00027544,15]
[391076939,1760304657932,-200.99020633,0.00027561,52]
[391076940,1760304657943,-500.0,0.00027561,60]
[391076941,1760304657953,-273.14092338,0.00027561,60]
[391076942,1760304657963,-500.0,0.00027561,60]
[391076943,1760304657973,-150.0,0.00027561,60]
[391076944,1760304657983,-446.08037415,0.00027561,60]
[391076945,1760304657993,-200.0,0.00027561,60]
[391076946,1760304658003,-500.0,0.00027561,60]
[391076947,1760304658013,-500.0,0.00027561,2]
[391076948,1760304658023,-603.0,0.00027561,60]
[391076949,1760304658033,-246.11993366,0.00027561,60]
[391076950,1760304658043,-200.0,0.00027561,60]
[391076951,1760304658054,-430.0,0.00027561,2]
[391076952,1760304658064,-500.0,0.00027561,14]
[391076953,1760304658074,-500.0,0.00027561,2]
[391076954,1760304658084,-500.0,0.00027561,60]
[391076955,1760304658093,-500.0,0.00027561,60]
[391076956,1760304658103,-500.0,0.00027561,60]
[391076957,1760304658113,-500.0,0.00027561,60]
[391076958,1760304658123,-500.0,0.00027561,60]
[391076959,1760304658132,-500.0,0.00027561,60]
[391076960,1760304658144,-150.0,0.00027561,60]
[391076961,1760304658155,-416.0,0.00027561,60]
[391076962,1760304658164,-150.0,0.00027561,60]
[391076963,1760304658174,-500.0,0.00027561,60]
[391076964,1760304658183,-2200.0,0.00027582,7]
[391076965,1760304658192,-150.0,0.00027602,30]
[391076966,1760304658203,-500.0,0.00027616,60]
[391076967,1760304658212,-500.0,0.00027616,60]
[391076968,1760304658222,-275.11486231,0.00027616,60]
[391076969,1760304658232,-500.0,0.00027616,2]
[391076970,1760304658242,-603.0,0.00027616,60]
[391076971,1760304658253,-430.0,0.00027616,2]
[391076972,1760304658262,-500.0,0.00027616,14]
[391076973,1760304658272,-432.82471409,0.00027616,2]
[391076974,1760304658283,-323.28873636,0.00027616,60]
[391076975,1760304658293,-500.0,0.00027616,60]
[391076976,1760304658303,-500.0,0.00027616,60]
[391076977,1760304658313,-500.0,0.00027616,60]
[391076978,1760304658323,-150.0,0.00027616,60]
[391076979,1760304658332,-416.0,0.00027616,60]
[391076980,1760304658342,-150.0,0.00027616,60]
[391076981,1760304658352,-500.0,0.00027616,60]
[391076982,1760304658364,-165.0,0.00027616,14]
[391076983,1760304658375,-1900.0,0.00027629,7]
[391076984,1760304658384,-199.06590457,0.0002764,2]
[391076985,1760304658398,-150.0,0.00027644,15]
[391076986,1760304658408,-500.0,0.00027664,7]
[391076987,1760304658418,-500.0,0.00027671,60]
[391076988,1760304658427,-500.0,0.00027671,60]
[391076989,1760304658439,-500.0,0.00027671,2]
[391076990,1760304658450,-603.0,0.00027671,60]
[391076991,1760304658459,-430.0,0.00027671,2]
[391076992,1760304658471,-500.0,0.00027671,14]
[391076993,1760304658481,-500.0,0.00027671,60]
[391076994,1760304658490,-500.0,0.00027671,60]
[391076995,1760304658503,-500.0,0.00027671,60]
[391076996,1760304658512,-250.0,0.00027671,60]
[391076997,1760304658522,-416.0,0.00027671,60]
[391076998,1760304658531,-166.28509973,0.00027671,60]
[391076999,1760304658541,-500.0,0.00027671,60]
[391077000,1760304658551,-200.0,0.00027671,2]
[391077001,1760304658560,-200.0,0.00027671,2]
[391077002,1760304658570,-500.0,0.00027696,7]
[391077003,1760304658580,-500.0,0.00027713,2]
[391077004,1760304658590,-500.0,0.00027726,60]
[391077005,1760304658599,-500.0,0.00027726,60]
[391077006,1760304658609,-500.0,0.00027726,2]
[391077007,1760304658618,-603.0,0.00027726,60]
[391077008,1760304658628,-430.0,0.00027726,2]
[391077009,1760304658638,-500.0,0.00027726,14]
[391077010,1760304658648,-500.0,0.00027726,60]
[391077011,1760304658659,-500.0,0.00027726,60]
[391077012,1760304658668,-500.0,0.00027726,60]
[391077013,1760304658678,-416.0,0.00027726,60]
[391077014,1760304658688,-500.0,0.00027726,60]
[391077015,1760304658697,-1200.0,0.00027726,7]
[391077016,1760304658707,-9200.0,0.00027738,7]
[391077017,1760304658716,-2500.0,0.00027742,7]
[391077018,1760304658726,-150.0,0.00027744,15]
[391077019,1760304658736,-500.0,0.00027746,7]
[391077020,1760304658746,-3700.0,0.00027755,7]
[391077021,1760304658755,-9200.0,0.0002778,7]